bitfinex/quotes_BTCUSD_20230403
["timestamp","ask_amount","ask_price","bid_price","bid_amount"]
[1680486917391,0.37592997,27677.0,27675.0,0.018066]
[1680486917620,0.021175,27676.0,27671.0,0.036318]
[1680486917828,0.021175,27676.0,27675.0,0.018066]
[1680486918085,0.37614997,27676.0,27675.0,0.018066]
[1680486919034,0.05,27675.0,27673.0,0.042841]
[1680486919256,0.39389197,27674.0,27673.0,0.042841]
[1680486919712,0.55663197,27674.0,27673.0,0.042841]
[1680486920382,0.75663197,27674.0,27673.0,0.042841]
[1680486920843,0.5752,27670.0,27666.0,0.00018]
[1680486921075,0.18072,27667.0,27662.0,0.03615]
[1680486921303,0.51647884,27666.0,27664.0,0.018073]
[1680486921521,0.020623,27665.0,27664.0,0.018073]
[1680486921743,0.37559797,27665.0,27664.0,0.018073]
[1680486921966,0.2,27664.0,27660.0,0.00018]
[1680486922187,0.51872184,27663.0,27660.0,0.018076]
[1680486922410,0.020222,27662.0,27660.0,0.018076]
[1680486922630,0.05,27661.0,27660.0,0.018076]
[1680486922887,0.070671,27661.0,27660.0,0.018076]
[1680486923348,0.42564597,27661.0,27659.0,0.01821264]
[1680486923577,0.37547097,27660.0,27659.0,0.01821264]
[1680486924024,0.37547097,27660.0,27659.0,0.03628964]
[1680486924704,0.37547097,27660.0,27659.0,0.01821264]
[1680486924941,0.42547097,27660.0,27659.0,0.01821264]
[1680486925619,0.42547097,27660.0,27659.0,0.06410664]
[1680486925848,0.42547097,27660.0,27659.0,0.08218364]
[1680486926767,0.42547097,27660.0,27659.0,0.06518364]
[1680486926996,0.42547097,27660.0,27659.0,0.07518364]
[1680486927930,0.80067097,27660.0,27659.0,0.07518364]
[1680486928156,0.80067097,27660.0,27656.0,0.057758]
[1680486928157,0.2,27658.0,27656.0,0.02178]
[1680486928392,0.74997897,27657.0,27656.0,0.0216]
[1680486928626,0.019804,27657.0,27656.0,0.039679]
[1680486928849,0.05021,27660.0,27656.0,0.039679]
[1680486928850,0.05,27660.0,27656.0,0.039679]
[1680486929072,0.35497497,27657.0,27656.0,0.039679]
[1680486929310,0.87214984,27657.0,27656.0,0.039679]
[1680486929536,0.00021,27659.0,27656.0,0.039679]
[1680486929756,0.55497497,27659.0,27656.0,0.039679]
[1680486929979,0.02038,27658.0,27656.0,0.039679]
[1680486930468,0.00021,27661.0,27656.0,0.039679]
[1680486930695,0.2,27663.0,27656.0,0.039679]
[1680486931156,0.69694984,27663.0,27656.0,0.067679]
[1680486931377,0.35497497,27662.0,27656.0,0.220471]
[1680486931602,0.35497497,27662.0,27657.0,0.039573]
[1680486931799,0.00021,27664.0,27658.0,0.126542]
[1680486931800,0.2,27663.0,27658.0,0.126542]
[1680486932063,0.55497497,27663.0,27658.0,0.126662]
[1680486932301,0.35497497,27663.0,27658.0,0.126662]
[1680486932529,0.00021,27665.0,27659.0,0.048767]
[1680486932768,0.00012,27671.0,27663.0,0.57516214]
[1680486933023,0.00021,27677.0,27665.0,0.668704]
[1680486933241,0.35497497,27676.0,27669.0,0.19996214]
[1680486933468,0.35518497,27677.0,27671.0,0.307177]
[1680486933668,0.35518497,27678.0,27671.0,0.307357]
[1680486933921,0.35497497,27678.0,27672.0,0.4161]
[1680486934144,0.35518497,27678.0,27673.0,0.126472]
[1680486934373,0.35497497,27678.0,27673.0,0.126592]
[1680486934830,0.35497497,27678.0,27673.0,0.126652]
[1680486935485,0.35497497,27678.0,27673.0,0.154652]
[1680486936161,0.35497497,27678.0,27673.0,0.126592]
[1680486936390,0.35497497,27678.0,27673.0,0.126472]
[1680486936615,0.49694984,27678.0,27673.0,0.154472]
[1680486936873,0.14197487,27677.0,27673.0,0.082202]
[1680486937112,0.53563497,27676.0,27673.0,0.082202]
[1680486937331,0.53563497,27676.0,27673.0,0.054202]
[1680486937559,0.53563497,27676.0,27673.0,0.046067]
[1680486937794,0.53563497,27676.0,27670.0,0.07228]
[1680486937795,0.069569,27675.0,27670.0,0.07228]
[1680486938012,0.73584497,27676.0,27673.0,0.046067]
[1680486938238,0.73584497,27676.0,27669.0,0.00018]
[1680486938239,0.020425,27675.0,27669.0,0.00018]
[1680486938462,0.020425,27675.0,27670.0,0.036139]
[1680486938463,0.49694984,27674.0,27670.0,0.036139]
[1680486938687,0.49694984,27674.0,27673.0,0.028]
[1680486938915,0.93160497,27674.0,27673.0,0.028]
[1680486939134,0.57505786,27673.0,27669.0,0.00012]
[1680486939385,0.51767484,27672.0,27669.0,0.00012]
[1680486939594,0.51767484,27672.0,27668.0,0.018071]
[1680486939595,0.020583,27671.0,27668.0,0.018071]
[1680486939818,0.18071,27669.0,27667.0,0.018071]
[1680486940059,0.37570897,27668.0,27666.0,0.00018]
[1680486940273,0.37570897,27668.0,27665.0,0.018073]
[1680486940274,0.020343,27667.0,27665.0,0.018073]
[1680486940511,0.35497497,27666.0,27664.0,0.00026214]
[1680486940738,0.35497497,27666.0,27665.0,0.018073]
[1680486940961,0.37556697,27666.0,27664.0,0.00014214]
[1680486941189,0.020455,27665.0,27664.0,0.00014214]
[1680486941422,0.89260484,27665.0,27662.0,0.00018]
[1680486941643,0.18076,27663.0,27661.0,0.00014214]
[1680486941868,0.42466997,27662.0,27660.0,0.00014214]
[1680486942129,0.42466997,27662.0,27659.0,0.00018]
[1680486942130,0.020338,27661.0,27659.0,0.00018]
[1680486942355,0.020338,27661.0,27659.0,0.00012]
[1680486942585,0.020338,27661.0,27658.0,0.018257]
[1680486942815,0.020338,27661.0,27658.0,0.018077]
[1680486943557,0.020338,27661.0,27659.0,0.018077]
[1680486944019,0.35497497,27660.0,27659.0,0.018077]
[1680486944242,0.37592297,27660.0,27659.0,0.018077]
[1680486944917,0.37592297,27660.0,27657.0,0.01840014]
[1680486945141,0.35497497,27660.0,27659.0,0.018077]
[1680486945373,0.55741797,27660.0,27659.0,0.028077]
[1680486946072,0.37464797,27660.0,27659.0,0.018077]
[1680486946317,0.021673,27660.0,27659.0,0.028077]
[1680486946543,0.002,27660.0,27659.0,0.028077]
[1680486946764,0.35697497,27660.0,27659.0,0.028077]
[1680486946987,0.37665597,27660.0,27659.0,0.028077]
[1680486947445,0.37665597,27660.0,27659.0,0.028257]
[1680486947446,0.35697497,27660.0,27659.0,0.028257]
[1680486947914,0.37688597,27660.0,27659.0,0.028257]
[1680486948138,0.35697497,27660.0,27659.0,0.028257]
[1680486948384,0.37802997,27660.0,27659.0,0.028077]
[1680486949052,0.023055,27660.0,27659.0,0.028077]
[1680486949281,0.002,27660.0,27659.0,0.028077]
[1680486949775,0.002,27660.0,27659.0,0.07584]
[1680486950670,0.35,27668.0,27665.0,0.00014214]
[1680486950671,0.05,27668.0,27665.0,0.00014214]
[1680486950870,0.37638997,27667.0,27666.0,0.018072]
[1680486951783,0.40138997,27667.0,27666.0,0.019072]
[1680486953127,0.40138997,27667.0,27666.0,0.01921414]
[1680486953606,0.35497497,27667.0,27666.0,0.01821414]
[1680486954066,0.35497497,27667.0,27666.0,0.03021414]
[1680486954067,0.37681197,27667.0,27666.0,0.03021414]
[1680486954304,0.37481197,27667.0,27666.0,0.01833414]
[1680486954527,0.37681197,27667.0,27666.0,0.03021414]
[1680486954765,0.37681197,27667.0,27665.0,0.108618]
[1680486954766,0.55553197,27667.0,27665.0,0.00018]
[1680486954991,0.020089,27666.0,27661.0,0.00032214]
[1680486955224,0.73017497,27665.0,27661.0,0.00032214]
[1680486955457,0.18075,27662.0,27661.0,0.01821714]
[1680486955684,0.69851984,27662.0,27661.0,0.01821714]
[1680486955918,0.55654497,27662.0,27661.0,0.00014214]
[1680486956829,0.93174497,27662.0,27661.0,0.01821714]
[1680486957050,0.93174497,27662.0,27661.0,0.02921714]
[1680486957338,0.93174497,27662.0,27661.0,0.01821714]
[1680486957515,0.93374497,27662.0,27661.0,0.02921714]
[1680486957744,0.93174497,27662.0,27661.0,0.01821714]
[1680486957974,0.75299497,27662.0,27661.0,0.02921714]
[1680486958203,0.37579497,27662.0,27661.0,0.01821714]
[1680486958427,0.37779497,27662.0,27661.0,0.02921714]
[1680486958674,0.37579497,27662.0,27661.0,0.01821714]
[1680486958900,0.37779497,27662.0,27661.0,0.01114214]
[1680486959145,0.37779497,27662.0,27661.0,0.02921714]
[1680486960265,0.37579497,27662.0,27661.0,0.01821714]
[1680486960491,0.37779497,27662.0,27661.0,0.02921714]
[1680486960717,0.37579497,27662.0,27661.0,0.01821714]
[1680486960945,0.37779497,27662.0,27661.0,0.02921714]
[1680486961183,0.37579497,27662.0,27661.0,0.01821714]
[1680486961409,0.37779497,27662.0,27661.0,0.02921714]
[1680486961633,0.37579497,27662.0,27661.0,0.01821714]
[1680486961860,0.37779142,27662.0,27661.0,0.02921714]
[1680486962084,0.37773142,27662.0,27661.0,0.01821714]
[1680486962306,0.37573142,27662.0,27661.0,0.01821714]
[1680486962564,0.80093142,27662.0,27661.0,0.01821714]
[1680486962787,0.80093142,27662.0,27661.0,0.01809487]
[1680486963257,0.80293142,27662.0,27661.0,0.02909487]
[1680486963483,0.37573142,27662.0,27661.0,0.01809487]
[1680486963708,0.37573142,27662.0,27661.0,0.20985387]
[1680486963709,0.001,27662.0,27661.0,0.20985387]
[1680486963935,0.05,27671.0,27661.0,0.23815887]
[1680486964163,0.001,27662.0,27661.0,0.210014]
[1680486964382,0.001,27662.0,27661.0,0.24747]
[1680486964607,0.4252,27669.0,27661.0,0.23647]
[1680486964819,0.35497497,27668.0,27661.0,0.199014]
[1680486965080,0.49694984,27668.0,27661.0,0.199014]
[1680486965489,0.05,27667.0,27661.0,0.199014]
[1680486965793,0.35497497,27666.0,27661.0,0.199014]
[1680486966448,0.001,27662.0,27661.0,0.224014]
[1680486966689,0.001,27662.0,27661.0,0.62740597]
[1680486966920,0.001,27662.0,27661.0,0.411011]
[1680486967161,0.05021,27672.0,27664.0,0.2]
[1680486967162,0.00021,27672.0,27664.0,0.2]
[1680486967386,0.3752,27674.0,27665.0,0.400012]
[1680486967387,0.001,27666.0,27665.0,0.400012]
[1680486967637,0.3528431,27674.0,27667.0,0.2]
[1680486967871,0.02376001,27678.0,27672.0,0.2]
[1680486968105,0.02376001,27678.0,27673.0,0.4040391]
[1680486968341,0.02376001,27678.0,27674.0,0.037983]
[1680486968562,0.02376001,27678.0,27675.0,0.054199]
[1680486968791,0.02376001,27678.0,27676.0,0.2]
[1680486969024,0.02376001,27678.0,27677.0,0.126458]
[1680486969271,0.02376001,27678.0,27677.0,0.126638]
[1680486969736,0.37873498,27678.0,27677.0,0.126638]
[1680486969954,0.39946098,27678.0,27677.0,0.018245]
[1680486970180,0.39946098,27678.0,27677.0,0.018185]
[1680486970416,0.39946098,27678.0,27677.0,0.046065]
[1680486970678,0.39946098,27678.0,27677.0,0.018065]
[1680486970920,0.77466098,27678.0,27677.0,0.017]
[1680486971156,0.77466098,27678.0,27675.0,0.018066]
[1680486971393,0.37597897,27677.0,27675.0,0.036133]
[1680486971637,0.35497497,27677.0,27676.0,0.018066]
[1680486971838,0.37463497,27677.0,27676.0,0.018066]
[1680486973705,0.01966,27677.0,27676.0,0.021066]
[1680486973929,0.01966,27677.0,27676.0,0.018066]
[1680486974150,0.37463497,27677.0,27676.0,0.028066]
[1680486974813,0.31463497,27677.0,27676.0,0.01]
[1680486975041,0.32929997,27677.0,27676.0,0.028066]
[1680486975748,0.31463497,27677.0,27676.0,0.064198]
[1680486975974,0.31463497,27677.0,27676.0,0.064378]
[1680486976198,0.02376001,27678.0,27676.0,0.064378]
[1680486976420,0.37873498,27678.0,27676.0,0.054378]
[1680486976648,0.37873498,27678.0,27676.0,0.082378]
[1680486976886,0.37873498,27678.0,27676.0,0.054378]
[1680486977109,0.37873498,27678.0,27676.0,0.082378]
[1680486977344,0.37873498,27678.0,27677.0,0.2]
[1680486977345,0.02376001,27678.0,27677.0,0.2]
[1680486977587,0.02376001,27678.0,27677.0,0.494154]
[1680486977830,0.02376001,27678.0,27677.0,0.494034]
[1680486978053,0.01306001,27684.0,27682.0,0.2]
[1680486978313,0.01306001,27684.0,27681.0,0.036125]
[1680486978314,0.35497497,27683.0,27681.0,0.036125]
[1680486978548,0.35497497,27683.0,27681.0,0.018062]
[1680486978782,1.1107851,27682.0,27678.0,0.018064]
[1680486979027,1.1107851,27682.0,27676.0,0.018065]
[1680486979028,0.5146,27679.0,27676.0,0.018065]
[1680486979256,0.50867797,27678.0,27676.0,0.046065]
[1680486979523,0.50867797,27678.0,27676.0,0.018065]
[1680486979524,0.014126,27677.0,27676.0,0.018065]
[1680486980222,0.014126,27677.0,27676.0,0.064197]
[1680486980478,0.014336,27677.0,27676.0,0.054197]
[1680486980708,0.00021,27677.0,27676.0,0.234858]
[1680486980937,0.00021,27677.0,27676.0,0.099738]
[1680486981167,0.00021,27683.0,27676.0,0.099738]
[1680486981428,0.01306001,27684.0,27676.0,0.064197]
[1680486981429,0.35497497,27682.0,27676.0,0.064197]
[1680486981660,0.35497497,27682.0,27676.0,0.054197]
[1680486981873,0.35497497,27682.0,27676.0,0.082197]
[1680486982146,0.35497497,27682.0,27676.0,0.054197]
[1680486982375,0.35518497,27682.0,27676.0,0.082197]
[1680486982619,0.00021,27682.0,27677.0,0.04647]
[1680486982877,0.01306001,27684.0,27678.0,0.126451]
[1680486983112,0.35497497,27683.0,27678.0,0.126451]
[1680486983351,0.35518497,27683.0,27678.0,0.126451]
[1680486983606,0.35518497,27683.0,27679.0,0.018063]
[1680486983829,0.015243,27682.0,27676.0,0.028]
[1680486984067,0.14197487,27681.0,27679.0,0.018064]
[1680486984343,0.00021,27682.0,27679.0,0.018064]
[1680486984581,0.34018497,27683.0,27679.0,0.018064]
[1680486985275,0.01306001,27684.0,27679.0,0.018064]
[1680486985519,0.01306001,27684.0,27679.0,0.246064]
[1680486985738,0.01306001,27684.0,27679.0,0.218244]
[1680486985995,0.01306001,27684.0,27679.0,0.246244]
[1680486986220,0.01306001,27684.0,27679.0,0.218244]
[1680486986674,0.01306001,27684.0,27680.0,0.054239]
[1680486986905,0.01306001,27684.0,27681.0,0.126438]
[1680486987128,0.01306001,27684.0,27682.0,0.0085]
[1680486987380,0.01306001,27684.0,27683.0,0.054184]
[1680486988352,0.00306001,27684.0,27683.0,0.054184]
[1680486989022,0.00306001,27684.0,27683.0,0.090684]
[1680486989923,0.00306001,27684.0,27683.0,0.062684]
[1680486990155,0.00306001,27684.0,27683.0,0.62910097]
[1680486990388,0.00306001,27684.0,27683.0,1.00430097]
[1680486990389,6.001e-05,27684.0,27683.0,1.00430097]
[1680486990841,6.001e-05,27684.0,27683.0,1.27630097]
[1680486991082,6.001e-05,27684.0,27683.0,1.30430097]
[1680486991307,6.001e-05,27684.0,27683.0,1.77648097]
[1680486991531,6.001e-05,27684.0,27683.0,1.50448097]
[1680486991763,6.001e-05,27684.0,27683.0,1.10128097]
[1680486991992,6.001e-05,27684.0,27683.0,0.608206]
[1680486992683,6.001e-05,27684.0,27683.0,0.636026]
[1680486992907,6.001e-05,27684.0,27683.0,0.608206]
[1680486993145,6.001e-05,27684.0,27683.0,0.636206]
[1680486993613,6.001e-05,27684.0,27683.0,0.608206]
[1680486993846,6.001e-05,27684.0,27683.0,0.99118097]
[1680486994070,6.001e-05,27684.0,27683.0,0.96318097]
[1680486994296,6.001e-05,27684.0,27683.0,0.99118097]
[1680486994554,6.001e-05,27684.0,27683.0,1.50448097]
[1680486995748,6.001e-05,27684.0,27683.0,1.47648097]
[1680486995965,1e-08,27684.0,27683.0,1.47630097]
[1680486996204,1e-08,27684.0,27683.0,1.50430097]
[1680486996429,1e-08,27684.0,27683.0,1.49407045]
[1680486996656,1e-08,27684.0,27683.0,1.52207045]
[1680486997323,1e-08,27684.0,27683.0,1.49407045]
[1680486997555,0.00376002,27688.0,27687.0,0.2]
[1680486997780,0.00376002,27688.0,27687.0,1.27748197]
[1680486997997,0.00376002,27688.0,27687.0,1.71706197]
[1680486998227,0.00376002,27688.0,27687.0,1.71700197]
[1680486998445,0.00376002,27688.0,27687.0,1.71688197]
[1680486999121,0.00376002,27688.0,27687.0,1.74488197]
[1680486999343,0.00376002,27688.0,27687.0,1.71688197]
[1680486999602,0.00376002,27688.0,27687.0,1.74488197]
[1680486999826,0.00376002,27688.0,27687.0,1.35570197]
[1680487000048,0.00376002,27688.0,27687.0,1.38370197]
[1680487000727,0.00376002,27688.0,27687.0,1.35570197]
[1680487001481,0.00376002,27688.0,27687.0,1.73090197]
[1680487001677,0.00376002,27688.0,27687.0,1.75890197]
[1680487001940,0.00376002,27688.0,27687.0,1.73090197]
[1680487002163,0.00376002,27688.0,27687.0,1.75890197]
[1680487002395,0.00376002,27688.0,27687.0,1.73090197]
[1680487002621,0.00376002,27688.0,27687.0,2.48126197]
[1680487002853,0.00376002,27688.0,27687.0,2.48138197]
[1680487003076,0.00376002,27688.0,27687.0,1.020227]
[1680487003312,0.00376002,27688.0,27687.0,0.820227]
[1680487003530,0.00376002,27688.0,27687.0,0.680827]
[1680487004454,0.00376002,27688.0,27687.0,0.380827]
[1680487004705,0.00376002,27688.0,27687.0,0.389327]
[1680487005825,0.00376002,27688.0,27687.0,0.689327]
[1680487009246,0.00376002,27688.0,27687.0,1.04430197]
[1680487009511,0.00376002,27688.0,27687.0,1.55890197]
[1680487009785,0.02376001,27690.0,27689.0,0.3752]
[1680487009998,0.02376001,27690.0,27689.0,0.530657]
[1680487010259,0.02376001,27690.0,27689.0,0.56262648]
[1680487010939,0.02376001,27694.0,27693.0,0.2]
[1680487011159,0.02376001,27694.0,27693.0,0.87525097]
[1680487011424,0.02376001,27694.0,27693.0,1.55063097]
[1680487012164,0.02376001,27694.0,27693.0,1.24820104]
[1680487012379,0.02376001,27694.0,27693.0,0.348396]
[1680487012604,0.02376001,27694.0,27693.0,0.348276]
[1680487012834,0.02376001,27694.0,27693.0,0.70325097]
[1680487013592,0.02376001,27694.0,27693.0,1.37845097]
[1680487013808,0.02376001,27694.0,27693.0,2.57863097]
[1680487014062,0.02376001,27694.0,27693.0,2.55063097]
[1680487014530,0.02376001,27694.0,27693.0,2.43917097]
[1680487014764,0.02376001,27694.0,27693.0,1.76385097]
[1680487016132,0.02376001,27694.0,27693.0,2.06385097]
[1680487016829,0.02376001,27694.0,27693.0,1.708876]
[1680487017767,0.00876001,27694.0,27693.0,1.708876]
[1680487018198,0.00876001,27694.0,27693.0,2.06385097]
[1680487018419,0.00876001,27694.0,27693.0,2.06403097]
[1680487018872,0.00876001,27694.0,27693.0,2.43923097]
[1680487018879,0.00876001,27694.0,27693.0,2.06403097]
[1680487019104,0.00876001,27694.0,27693.0,1.708876]
[1680487021236,0.00876001,27694.0,27693.0,2.03585097]
[1680487021435,0.00876001,27694.0,27693.0,2.06385097]
[1680487022242,0.00876001,27694.0,27693.0,1.708876]
[1680487022505,0.00876001,27694.0,27693.0,1.838876]
[1680487022699,0.00876001,27694.0,27693.0,2.038876]
[1680487022908,0.00876001,27694.0,27693.0,1.838996]
[1680487023113,0.00876001,27694.0,27693.0,1.838876]
[1680487025044,0.00876001,27694.0,27693.0,1.530376]
[1680487025259,0.22374014,27695.0,27693.0,1.376055]
[1680487025476,0.63735897,27694.0,27693.0,1.376055]
[1680487025697,0.68756897,27694.0,27693.0,1.348055]
[1680487025903,0.68756897,27694.0,27693.0,1.376055]
[1680487026612,0.68756897,27694.0,27693.0,1.358]
[1680487026821,1.06276897,27694.0,27693.0,1.23]
[1680487027046,1.14896897,27694.0,27693.0,0.7805]
[1680487027258,1.14896897,27694.0,27693.0,0.6525]
[1680487027472,1.14896897,27694.0,27693.0,0.6765]
[1680487027680,1.14896897,27694.0,27693.0,0.5765]
[1680487027913,0.19998013,27686.0,27684.0,0.036121]
[1680487028127,0.15633387,27685.0,27684.0,0.036301]
[1680487028353,0.15633387,27685.0,27680.0,0.00012]
[1680487028354,0.19998013,27683.0,27680.0,0.00012]
[1680487028572,0.19998013,27683.0,27675.0,0.00885136]
[1680487028573,0.19998013,27675.0,27673.0,6e-05]
[1680487028790,0.19998013,27675.0,27670.0,0.08117757]
[1680487028791,0.19998013,27672.0,27670.0,0.08117757]
[1680487029003,0.15617687,27671.0,27670.0,0.03957]
[1680487029229,0.13467687,27671.0,27670.0,0.03957]
[1680487029679,0.18467687,27671.0,27670.0,0.0385]
[1680487029898,0.064202,27671.0,27670.0,0.0215]
[1680487030149,0.42117697,27671.0,27670.0,0.0385]
[1680487030804,0.50797697,27671.0,27670.0,0.0385]
[1680487031225,0.7059571,27671.0,27670.0,0.0215]
[1680487031440,0.7079571,27671.0,27670.0,0.0385]
[1680487031659,0.7059571,27671.0,27670.0,0.0215]
[1680487031876,0.21618213,27671.0,27670.0,0.17524399]
[1680487032101,0.00021,27671.0,27670.0,0.0215]
[1680487032325,0.001,27671.0,27670.0,0.04857]
[1680487032796,0.002,27671.0,27670.0,0.05657]
[1680487033016,0.002,27671.0,27670.0,0.09271]
[1680487033243,0.24998013,27674.0,27670.0,0.07571]
[1680487033463,0.5549551,27674.0,27670.0,0.07571]
[1680487033889,0.5549551,27674.0,27670.0,0.03957]
[1680487034146,0.20198013,27671.0,27670.0,0.0385]
[1680487034362,0.5695661,27671.0,27670.0,0.0215]
[1680487034576,0.5695661,27671.0,27670.0,0.0385]
[1680487034782,0.7086661,27671.0,27670.0,0.0215]
[1680487034991,0.7106661,27671.0,27670.0,0.0385]
[1680487035681,1.1358661,27671.0,27670.0,0.0001]
[1680487035899,1.1358661,27671.0,27666.0,0.0215]
[1680487035900,0.19998013,27667.0,27666.0,0.0215]
[1680487036126,0.7086311,27667.0,27666.0,0.0215]
[1680487037200,0.7096311,27667.0,27666.0,0.0215]
[1680487037853,1.0848311,27667.0,27666.0,0.0215]
[1680487038717,1.0838311,27667.0,27666.0,0.0215]
[1680487038932,1.0848311,27667.0,27666.0,0.0215]
[1680487039613,1.1348311,27667.0,27666.0,0.0215]
[1680487039809,1.1510951,27667.0,27666.0,0.0215]
[1680487040226,1.1348311,27667.0,27666.0,0.0215]
[1680487040461,1.6510951,27667.0,27666.0,0.0215]
[1680487041115,1.6500951,27667.0,27666.0,0.0215]
[1680487041318,1.6338311,27667.0,27666.0,0.0215]
[1680487042001,1.6560951,27667.0,27666.0,0.0215]
[1680487043095,1.6500951,27667.0,27666.0,0.0215]
[1680487043321,1.6560951,27667.0,27666.0,0.0215]
[1680487043756,1.6500951,27667.0,27666.0,0.0215]
[1680487043962,1.6560951,27667.0,27666.0,0.0215]
[1680487044168,1.6500951,27667.0,27666.0,0.0215]
[1680487044378,1.6560951,27667.0,27666.0,0.0215]
[1680487044593,1.6500951,27667.0,27666.0,0.0215]
[1680487044830,1.6630951,27667.0,27666.0,0.0215]
[1680487045687,1.7281541,27667.0,27666.0,0.0215]
[1680487045899,1.7151541,27667.0,27666.0,0.0215]
[1680487046115,1.6760951,27667.0,27666.0,0.0215]
[1680487046325,1.1500951,27667.0,27666.0,0.0215]
[1680487046531,1.1598311,27667.0,27666.0,0.0215]
[1680487046748,1.1338311,27667.0,27666.0,0.0215]
[1680487046965,1.1770951,27667.0,27666.0,0.0215]
[1680487047397,1.1608311,27667.0,27666.0,0.0215]
[1680487047814,1.1338311,27667.0,27666.0,0.0215]
[1680487048026,1.0838311,27667.0,27666.0,0.0215]
[1680487048872,0.88385097,27667.0,27666.0,0.0215]
[1680487049081,1.1108311,27667.0,27666.0,0.0215]
[1680487049323,1.0838311,27667.0,27666.0,0.0215]
[1680487049528,1.1108311,27667.0,27666.0,0.0215]
[1680487049745,0.5962311,27667.0,27666.0,0.039572]
[1680487049962,0.041486,27667.0,27666.0,0.039572]
[1680487050158,0.041276,27667.0,27666.0,0.039572]
[1680487050798,0.1388,27668.0,27666.0,0.039572]
[1680487050998,0.015455,27667.0,27666.0,0.041572]
[1680487051866,0.37042997,27667.0,27666.0,0.0235]
[1680487052075,0.37042997,27667.0,27666.0,0.041572]
[1680487052287,0.014455,27667.0,27666.0,0.039572]
[1680487052512,0.00021,27671.0,27666.0,0.039572]
[1680487052708,0.35497497,27670.0,27666.0,0.15824599]
[1680487052922,0.014011,27669.0,27666.0,0.15842599]
[1680487053142,0.35497497,27670.0,27666.0,0.039752]
[1680487053568,0.01489,27669.0,27666.0,0.039752]
[1680487053801,0.18072,27667.0,27666.0,0.0215]
[1680487054017,0.55038597,27667.0,27666.0,0.0215]
[1680487055106,0.55038597,27667.0,27666.0,0.041572]
[1680487055107,0.36966597,27667.0,27666.0,0.041572]
[1680487055309,0.014691,27667.0,27666.0,0.039572]
[1680487055516,0.01532,27668.0,27666.0,0.039572]
[1680487055959,0.002,27667.0,27666.0,0.041572]
[1680487056368,0.00021,27672.0,27666.0,0.111862]
[1680487056583,0.003,27668.0,27667.0,0.12717399]
[1680487056794,0.00021,27674.0,27667.0,0.76251497]
[1680487057052,1.30019995,27676.0,27668.0,0.59407399]
[1680487057259,1.30019995,27676.0,27672.0,0.2]
[1680487057479,1.30019995,27675.0,27673.0,0.60012496]
[1680487057701,0.00021,27677.0,27674.0,0.3085]
[1680487057908,0.38060013,27683.0,27675.0,0.096927]
[1680487057909,1.65499647,27682.0,27675.0,0.096927]
[1680487058128,1.3000215,27681.0,27676.0,0.12717399]
[1680487058369,1.65499647,27681.0,27677.0,0.126456]
[1680487058579,1.3157895,27680.0,27677.0,0.24512999]
[1680487058802,1.3147335,27679.0,27677.0,0.018245]
[1680487059039,0.19998013,27677.0,27675.0,0.018066]
[1680487059250,1.3131905,27676.0,27675.0,0.018066]
[1680487059460,1.3000215,27676.0,27675.0,0.018066]
[1680487059873,1.29993685,27676.0,27675.0,0.018066]
[1680487060084,1.29993685,27676.0,27673.0,0.018067]
[1680487060307,0.35497497,27676.0,27674.0,0.018067]
[1680487060515,0.35497497,27675.0,27670.0,0.00018]
[1680487060734,0.49694984,27675.0,27672.0,0.018068]
[1680487060985,0.001,27676.0,27675.0,0.01]
[1680487061199,0.23063,27681.0,27675.0,0.018066]
[1680487061411,0.36990697,27680.0,27676.0,0.11867399]
[1680487061640,0.014585,27679.0,27677.0,0.018065]
[1680487062066,0.35497497,27679.0,27677.0,0.018065]
[1680487062706,0.00021,27681.0,27677.0,0.018065]
[1680487062942,0.35497497,27681.0,27678.0,0.11867399]
[1680487063156,0.00021,27682.0,27679.0,0.054192]
[1680487063359,0.00021,27685.0,27679.0,0.17286599]
[1680487063610,0.35497497,27684.0,27680.0,0.11867399]
[1680487063819,0.35518497,27684.0,27681.0,0.126436]
[1680487064032,0.00021,27684.0,27681.0,0.126436]
[1680487064247,0.02365,27687.0,27681.0,0.126436]
[1680487064465,0.36914597,27686.0,27682.0,0.11867399]
[1680487064684,0.014132,27685.0,27683.0,0.018061]
[1680487064926,0.35497497,27684.0,27681.0,0.028]
[1680487065144,0.35497497,27684.0,27682.0,0.018061]
[1680487065351,0.01417,27683.0,27682.0,0.027061]
[1680487065587,0.014968,27686.0,27681.0,0.018062]
[1680487065810,0.36994297,27686.0,27681.0,0.16473599]
[1680487066013,0.014249,27685.0,27681.0,0.16473599]
[1680487066262,0.014249,27685.0,27681.0,0.046062]
[1680487066677,0.014249,27685.0,27681.0,0.018062]
[1680487066905,0.001,27683.0,27682.0,0.01]
[1680487067110,0.35497497,27686.0,27682.0,0.054186]
[1680487067321,0.015673,27685.0,27682.0,0.054186]
[1680487067534,0.014673,27685.0,27682.0,0.054186]
[1680487067739,0.001,27683.0,27682.0,0.028062]
[1680487067956,0.35597497,27683.0,27682.0,0.028062]
[1680487068180,0.35497497,27683.0,27682.0,0.018062]
[1680487068386,0.36899197,27683.0,27682.0,0.041062]
[1680487068589,0.36899197,27683.0,27682.0,0.018062]
[1680487068827,0.88616684,27683.0,27678.0,0.00018]
[1680487069039,0.51033184,27682.0,27678.0,0.018064]
[1680487069255,0.49694984,27682.0,27678.0,0.018064]
[1680487069468,0.013903,27681.0,27678.0,0.018064]
[1680487069677,0.3762,27683.0,27678.0,0.018064]
[1680487069678,0.35497497,27680.0,27678.0,0.018064]
[1680487070351,0.00021,27682.0,27678.0,0.018064]
[1680487070559,0.001,27681.0,27678.0,0.16373799]
[1680487070785,0.35497497,27685.0,27678.0,0.018064]
[1680487070995,0.001,27680.0,27679.0,0.11867399]
[1680487071203,0.02365,27687.0,27679.0,0.288029]
[1680487071464,0.001,27681.0,27680.0,0.12717399]
[1680487071670,0.001,27681.0,27680.0,0.106847]
[1680487071889,0.001,27681.0,27680.0,0.026563]
[1680487072320,0.70139984,27687.0,27680.0,0.026563]
[1680487072531,0.36852997,27686.0,27681.0,0.11867399]
[1680487072756,0.01499,27685.0,27682.0,0.018061]
[1680487072989,0.35497497,27686.0,27682.0,0.018061]
[1680487073211,0.35497497,27686.0,27682.0,0.13673499]
[1680487073439,0.35597497,27686.0,27682.0,0.13691499]
[1680487073884,0.35497497,27686.0,27682.0,0.018241]